bitfinex-derivatives/quotes_SOLF0:USTF0_20250312
["timestamp","ask_amount","ask_price","bid_price","bid_amount"]
[1741754320082,0.05306396,121.34,121.32,0.05458833]
[1741754321182,0.05306396,121.34,121.33,8.2442]
[1741754321488,0.05306396,121.34,121.32,0.05458833]
[1741754321887,8.29666396,121.34,121.32,0.05458833]
[1741754322286,0.05306396,121.34,121.32,0.05458833]
[1741754323285,0.05306396,121.34,121.33,8.2442]
[1741754324785,23.54,121.35,121.33,28.54034317]
[1741754324986,23.54,121.35,121.34,8.2436]
[1741754325189,20.0778,121.35,121.34,41.4836]
[1741754325387,21.56,121.39,121.36,8.2417]
[1741754325679,37.6541,121.42,121.34,33.24]
[1741754325885,8.2398,121.4,121.36,8.2417]
[1741754326186,0.06065375,121.39,121.37,0.06239376]
[1741754326580,12.6323,121.42,121.38,8.2408]
[1741754326779,11.06569136,121.45,121.38,17.81465241]
[1741754326985,15.45259136,121.45,121.4,17.81465241]
[1741754327192,4.3869,121.45,121.38,26.05525241]
[1741754327391,4.3869,121.45,121.38,17.81465241]
[1741754327793,0.05203446,121.43,121.4,0.05443165]
[1741754331181,8.2386,121.42,121.4,0.05443165]
[1741754331685,0.05203446,121.43,121.4,17.86908406]
[1741754332090,0.05203446,121.43,121.4,0.05443165]
[1741754332286,8.28973446,121.43,121.4,0.05443165]
[1741754332593,0.05203446,121.43,121.4,8.29353165]
[1741754332794,8.28953446,121.43,121.4,8.29353165]
[1741754332991,0.05203446,121.43,121.4,0.05443165]
[1741754333389,8.2388,121.41,121.4,0.05443165]
[1741754334298,8.2383,121.42,121.4,0.05443165]
[1741754334488,0.05203446,121.43,121.4,0.05443165]
[1741754334890,8.2388,121.41,121.4,0.05443165]
[1741754335492,8.2384,121.42,121.4,0.05443165]
[1741754335800,0.05203446,121.43,121.4,8.29393165]
[1741754336094,0.05203446,121.43,121.4,17.86908406]
[1741754336698,8.28983446,121.43,121.4,17.86908406]
[1741754336897,0.05203446,121.43,121.4,26.10848406]
[1741754337091,0.05203446,121.43,121.4,17.86908406]
[1741754337493,0.05203446,121.43,121.41,8.2384]
[1741754337700,0.05203446,121.43,121.41,33.22]
[1741754339291,0.05203446,121.43,121.42,8.2381]
[1741754340396,0.05203446,121.43,121.42,26.05275241]
[1741754340793,16.76,121.46,121.42,17.81465241]
[1741754341299,8.2363,121.45,121.42,17.81465241]
[1741754341599,8.2363,121.45,121.42,26.05245241]
[1741754341989,8.29340282,121.45,121.42,26.11536545]
[1741754343202,0.05710282,121.45,121.43,8.2374]
[1741754343700,0.05710282,121.45,121.42,17.87756545]
[1741754344002,8.29350282,121.45,121.42,26.11546545]
[1741754344502,0.05710282,121.45,121.42,17.87756545]
[1741754344697,8.2374,121.44,121.42,17.87756545]
[1741754345093,8.29350282,121.45,121.42,17.87756545]
[1741754345304,0.05710282,121.45,121.42,17.87756545]
[1741754345504,0.05710282,121.45,121.42,0.06291304]
[1741754345804,8.2375,121.43,121.42,0.06291304]
[1741754347605,0.05710282,121.45,121.42,0.06291304]
[1741754347802,0.05710282,121.45,121.42,8.30061304]
[1741754348401,8.29380282,121.45,121.42,0.06291304]
[1741754348605,0.05710282,121.45,121.42,0.06291304]
[1741754349101,8.2375,121.43,121.42,0.06291304]
[1741754350505,19.93355241,121.44,121.36,51.13465241]
[1741754350706,2.298,121.43,121.36,51.13465241]
[1741754350901,2.298,121.43,121.37,8.2414]
[1741754351101,8.2398,121.4,121.37,8.2414]
[1741754351296,8.2398,121.4,121.36,51.13465241]
[1741754351502,0.05617975,121.39,121.37,0.05875217]
[1741754351700,8.2409,121.38,121.37,0.05875217]
[1741754352401,8.2409,121.38,121.33,33.28]
[1741754352402,8.2428,121.36,121.32,26.05935241]
[1741754352812,33.28,121.41,121.34,26.05815241]
[1741754353112,33.28,121.41,121.34,17.81465241]
[1741754353306,33.28,121.41,121.35,8.2424]
[1741754353512,33.28,121.41,121.36,0.05646389]
[1741754353513,0.05470465,121.39,121.36,0.05646389]
[1741754353915,8.29540465,121.39,121.36,0.05646389]
[1741754354716,0.05470465,121.39,121.36,26.1132163]
[1741754355309,0.05470465,121.39,121.36,17.8711163]
[1741754355912,0.05470465,121.39,121.37,8.2411]
[1741754356318,0.05470465,121.39,121.36,17.8711163]
[1741754356508,0.05470465,121.39,121.36,0.05646389]
[1741754357016,8.2415,121.37,121.36,0.05646389]
[1741754357409,2.1617,121.38,121.32,51.19465241]
[1741754357616,2.1617,121.38,121.34,26.05805241]
[1741754357819,2.1617,121.38,121.35,33.38]
[1741754358014,213.47626582,121.43,121.36,17.81465241]
[1741754358214,4.3078,121.42,121.36,17.81465241]
[1741754358418,0.06004625,121.4,121.38,0.05617864]
[1741754358715,8.2402,121.39,121.38,0.05617864]
[1741754362420,33.46004625,121.4,121.32,51.21465241]
[1741754362619,2.1679,121.39,121.32,51.21465241]
[1741754363020,8.2439,121.34,121.32,51.21465241]
[1741754363208,2.1679,121.39,121.32,51.21465241]
[1741754363413,0.05261687,121.37,121.34,0.05456725]
[1741754365124,33.39261687,121.37,121.34,0.05456725]
[1741754365315,2.1716,121.36,121.34,0.05456725]
[1741754365511,8.2429,121.35,121.34,0.05456725]
[1741754365718,2.1716,121.36,121.34,0.05456725]
[1741754366321,0.05261687,121.37,121.34,17.86921966]
[1741754366520,0.05261687,121.37,121.36,17.81465241]
[1741754369424,0.05261687,121.37,121.34,17.86921966]
[1741754370319,0.05261687,121.37,121.34,0.05456725]
[1741754370921,2.33791687,121.37,121.34,0.05456725]
[1741754371616,8.2426,121.36,121.34,0.05456725]
[1741754371820,2.33791687,121.37,121.34,0.05456725]
[1741754372020,2.33791687,121.37,121.34,17.86921966]
[1741754372223,0.05261687,121.37,121.34,59.43231966]
[1741754372722,0.05261687,121.37,121.34,51.18921966]
[1741754372929,0.05261687,121.37,121.35,8.2429]
[1741754373223,0.05261687,121.37,121.34,51.18921966]
[1741754373529,0.05261687,121.37,121.36,26.05685241]
[1741754373719,0.05261687,121.37,121.36,17.81465241]
[1741754374125,0.05261687,121.37,121.34,59.43241966]
[1741754375222,0.05261687,121.37,121.36,26.05685241]
[1741754375629,0.05261687,121.37,121.36,17.81465241]
[1741754376227,0.05261687,121.37,121.34,51.18921966]
[1741754377032,0.05261687,121.37,121.36,8.2422]
[1741754377334,0.05261687,121.37,121.36,26.05685241]
[1741754378424,2.1716,121.41,121.38,8.2407]
[1741754378624,2.1716,121.41,121.38,26.05535241]
[1741754379027,10.4105,121.41,121.38,26.05535241]
[1741754379532,10.47029471,121.41,121.38,26.11145711]
[1741754379732,8.2396,121.4,121.38,0.0561047]
[1741754380535,8.2402,121.39,121.38,0.0561047]
[1741754381628,4.43639471,121.41,121.35,33.26]
[1741754381629,8.2419,121.37,121.35,33.26]
[1741754381829,4.3766,121.41,121.34,265.01465241]
[1741754382329,8.2426,121.36,121.34,265.01465241]
[1741754382530,8.2426,121.36,121.34,247.2]
[1741754382832,8.30368189,121.36,121.34,0.05593657]
[1741754383136,0.06128189,121.36,121.34,0.05593657]
[1741754383834,0.06128189,121.36,121.3,51.19465241]
[1741754384232,8.2443,121.33,121.3,51.19465241]
[1741754384437,17.81465241,121.38,121.3,17.81465241]
[1741754384930,8.2442,121.34,121.3,26.06045241]
[1741754385130,0.05303529,121.35,121.3,17.81465241]
[1741754385531,8.244,121.34,121.3,26.06055241]
[1741754386636,8.2444,121.33,121.3,26.06055241]
[1741754386836,8.2444,121.33,121.3,17.81465241]
[1741754387040,0.05303529,121.35,121.3,17.81465241]
[1741754387440,0.05303529,121.35,121.32,8.2449]
[1741754387832,8.29603529,121.35,121.3,17.81465241]
[1741754388032,0.05303529,121.35,121.3,17.81465241]
[1741754388739,0.05303529,121.35,121.32,8.2445]
[1741754389340,8.29613529,121.35,121.32,8.2445]
[1741754389739,0.05303529,121.35,121.3,17.81465241]
[1741754390341,8.29593529,121.35,121.32,8.2445]
[1741754390535,0.05303529,121.35,121.32,17.81465241]
[1741754390742,0.05303529,121.35,121.32,51.07465241]
[1741754390942,0.05303529,121.35,121.32,59.31925241]
[1741754391442,0.05303529,121.35,121.32,51.07465241]
[1741754391637,0.05303529,121.35,121.33,8.2438]
[1741754391842,0.05303529,121.35,121.32,51.07465241]
[1741754392341,0.05303529,121.35,121.32,59.31915241]
[1741754392536,0.05303529,121.35,121.32,51.07465241]
[1741754394546,0.05303529,121.35,121.33,8.2436]
[1741754394938,0.05303529,121.35,121.32,51.07465241]
[1741754395139,0.05303529,121.35,121.33,8.2442]
[1741754395544,0.05303529,121.35,121.32,51.07465241]
[1741754395742,0.05303529,121.35,121.33,8.244]
[1741754396945,0.05303529,121.35,121.32,51.07465241]
[1741754397648,8.29603529,121.35,121.32,51.07465241]
[1741754398142,8.2442,121.33,121.3,50.87465241]
[1741754398341,0.05303529,121.35,121.3,50.87465241]
[1741754399144,8.2439,121.34,121.3,26.06045241]
[1741754399344,8.2439,121.34,121.3,59.10045241]
[1741754400455,8.2439,121.34,121.31,8.2456]
[1741754400851,8.2439,121.34,121.3,50.85465241]
[1741754401051,8.2439,121.34,121.3,59.10065241]
[1741754401254,8.2445,121.33,121.3,59.10065241]
[1741754402664,0.05303529,121.35,121.32,26.05925241]
[1741754402855,0.05303529,121.35,121.33,33.06]
[1741754403555,0.05303529,121.35,121.34,17.81465241]
[1741754406557,0.05303529,121.35,121.33,33.06]
[1741754406961,0.05303529,121.35,121.32,26.05895241]
[1741754407362,0.05303529,121.35,121.3,26.06075241]
[1741754407564,0.05303529,121.35,121.31,33.04]
[1741754407763,0.05303529,121.35,121.3,26.06075241]
[1741754407964,0.05303529,121.35,121.3,17.81465241]
[1741754408161,2.37053529,121.35,121.3,17.81465241]
[1741754408466,8.2448,121.33,121.3,17.81465241]
[1741754408765,8.2448,121.33,121.3,26.06095241]
[1741754409060,8.2448,121.33,121.3,17.81465241]
[1741754409264,8.245,121.32,121.3,17.81465241]
[1741754409566,8.29983694,121.32,121.3,17.81465241]
[1741754409969,0.05483694,121.32,121.3,17.81465241]
[1741754410170,8.2456,121.31,121.3,17.81465241]
[1741754410463,8.2456,121.31,121.29,247.2]
[1741754410663,8.2456,121.31,121.28,26.06205241]
[1741754410664,8.2463,121.3,121.28,17.81465241]
[1741754410870,0.05483694,121.32,121.28,17.81465241]
[1741754412063,8.30013694,121.32,121.28,26.06205241]
[1741754412369,0.05483694,121.32,121.28,26.06205241]
[1741754413165,8.29983694,121.32,121.28,26.06205241]
[1741754414572,8.29983694,121.32,121.28,17.81465241]
[1741754414767,8.29983694,121.32,121.29,8.2468]
[1741754414970,0.05483694,121.32,121.28,17.81465241]
[1741754415870,0.05483694,121.32,121.26,26.06335241]
[1741754416166,8.2475,121.29,121.26,26.06335241]
[1741754416570,8.3010559,121.3,121.27,8.2483]
[1741754417171,8.247,121.29,121.26,26.06335241]
[1741754417675,0.0542559,121.3,121.26,17.81465241]
[1741754417974,8.3005559,121.3,121.27,8.2478]
[1741754418376,8.2471,121.29,121.26,26.06345241]
[1741754419275,8.2477,121.28,121.26,17.81465241]
[1741754419774,33.1142559,121.3,121.24,17.81465241]
[1741754419978,33.06,121.3,121.24,17.81465241]
[1741754420177,0.05273565,121.28,121.24,17.81465241]
[1741754420374,8.2484,121.27,121.24,26.06465241]
[1741754420572,0.05273565,121.28,121.24,26.06465241]
[1741754421279,0.05273565,121.28,121.26,17.81465241]
[1741754421479,33.06,121.32,121.26,17.81465241]
[1741754421679,0.06251532,121.28,121.27,8.2483]
[1741754421880,33.06,121.32,121.26,17.81465241]
[1741754422081,0.05480018,121.29,121.26,17.81465241]
[1741754422277,0.05480018,121.29,121.28,8.2473]
[1741754423280,0.05480018,121.29,121.28,26.06195241]
[1741754425287,0.05480018,121.29,121.28,17.81465241]
[1741754425481,0.05480018,121.29,121.26,17.81465241]
[1741754425985,0.05480018,121.29,121.27,8.2482]
[1741754426587,0.05480018,121.29,121.28,8.2476]
[1741754426784,0.05480018,121.29,121.28,26.06225241]
[1741754427383,0.05480018,121.29,121.28,17.81465241]
[1741754429490,0.05480018,121.29,121.28,26.06225241]
[1741754429886,0.05480018,121.29,121.28,17.81465241]
[1741754430886,4.5711,121.34,121.28,50.87465241]
[1741754431083,17.67,121.36,121.33,17.81465241]
[1741754431582,17.67,121.36,121.33,26.05865241]
[1741754431789,17.67,121.36,121.33,17.81465241]
[1741754432089,17.72213914,121.36,121.35,17.81465241]
[1741754432287,37.56213914,121.36,121.35,17.81465241]
[1741754432491,19.89213914,121.36,121.35,17.81465241]
[1741754434584,19.89213914,121.36,121.33,26.11271409]
[1741754435888,37.33213914,121.36,121.33,26.11271409]
[1741754438391,8.2436,121.34,121.33,17.86871409]
[1741754438592,37.33213914,121.36,121.33,50.92871409]
[1741754438992,45.57463914,121.36,121.33,50.92871409]
[1741754439594,37.33213914,121.36,121.33,50.92871409]
[1741754439795,8.2429,121.35,121.33,50.92871409]
[1741754440294,8.2436,121.34,121.33,0.05406168]
[1741754440791,55.14679155,121.36,121.29,17.81465241]
[1741754440992,2.1706,121.33,121.27,17.81465241]
[1741754441192,2.1706,121.33,121.26,247.36]
[1741754441495,8.2485,121.27,121.25,17.81465241]
[1741754441691,33.04,121.32,121.25,17.81465241]
[1741754441995,0.06046305,121.27,121.25,17.81465241]
[1741754442194,33.04,121.32,121.25,17.81465241]
[1741754442495,0.06078698,121.3,121.25,17.81465241]
[1741754442698,0.06078698,121.3,121.23,17.81465241]
[1741754442896,8.2488,121.27,121.24,33.04]
[1741754443093,8.2488,121.27,121.23,17.81465241]
[1741754443295,0.06339533,121.28,121.23,17.81465241]
[1741754443296,2.1856,121.26,121.23,17.81465241]
[1741754443495,2.1856,121.26,121.23,26.06565241]
[1741754444195,8.31119533,121.28,121.23,26.06565241]
[1741754444403,0.06339533,121.28,121.24,8.2503]
[1741754445098,0.06339533,121.28,121.25,26.06425241]
[1741754445501,0.06339533,121.28,121.25,17.81465241]
[1741754446095,8.2484,121.27,121.25,17.81465241]
[1741754446297,0.06339533,121.28,121.25,17.81465241]
[1741754447897,8.31129533,121.28,121.25,17.81465241]
[1741754448103,0.06339533,121.28,121.25,17.81465241]
[1741754448702,0.06339533,121.28,121.25,26.06395241]
[1741754449504,0.06339533,121.28,121.25,26.06425241]
[1741754450401,0.06339533,121.28,121.25,17.81465241]
[1741754450605,0.06339533,121.28,121.27,17.81465241]
[1741754451095,0.06339533,121.28,121.27,26.06295241]
[1741754451301,0.06339533,121.28,121.27,17.81465241]
[1741754451500,8.31109533,121.28,121.24,41.3101]
[1741754451899,0.06339533,121.28,121.24,33.06]
[1741754452103,21.66,121.27,121.24,33.06]
[1741754452708,21.66,121.27,121.25,17.81465241]
[1741754454308,21.66,121.27,121.25,26.06425241]
[1741754454807,21.66,121.27,121.26,8.249]
[1741754456906,4.4744,121.33,121.26,17.81465241]
[1741754457103,4.4744,121.33,121.3,17.81465241]
[1741754457299,4.4744,121.33,121.3,26.06075241]
[1741754457605,2.1836,121.33,121.3,26.06075241]
[1741754458007,2.24258409,121.33,121.3,17.86985292]
[1741754458508,0.05898409,121.33,121.3,17.86985292]
[1741754459010,0.05898409,121.33,121.31,8.2452]
[1741754459309,0.05898409,121.33,121.3,50.92985292]
[1741754459515,0.05898409,121.33,121.32,26.05955241]
[1741754460608,2.2646,121.37,121.32,17.81465241]
[1741754460803,4.5936,121.39,121.34,17.81465241]
[1741754461004,8.2411,121.38,121.35,8.2429]
[1741754461313,1.08,121.4,121.36,17.81465241]
[1741754461510,1.08,121.4,121.37,8.2411]
[1741754461809,0.05470687,121.39,121.38,17.81465241]
[1741754462008,0.05470687,121.39,121.38,26.05545241]
[1741754462204,4.5674,121.42,121.38,17.81465241]
[1741754462611,2.3397,121.42,121.39,8.24]
[1741754462912,44.26276545,121.43,121.4,17.81465241]
[1741754463109,2.3374,121.45,121.4,17.81465241]
[1741754463309,0.05826863,121.43,121.4,17.86788834]
[1741754463817,0.05826863,121.43,121.4,26.10708834]
[1741754464010,0.05826863,121.43,121.4,17.86788834]
[1741754465511,0.05826863,121.43,121.41,8.2387]
[1741754465712,0.05826863,121.43,121.4,17.86788834]
[1741754466214,0.05826863,121.43,121.4,50.90788834]
[1741754467318,0.05826863,121.43,121.41,8.2383]
[1741754467511,0.05826863,121.43,121.4,50.90788834]
[1741754467512,0.05826863,121.43,121.42,17.81465241]
[1741754467718,4.6745,121.48,121.42,17.81465241]
[1741754467914,8.2352,121.47,121.44,26.05135241]
[1741754468115,2.3724,121.48,121.44,26.05135241]
[1741754468315,2.3724,121.48,121.44,17.81465241]
[1741754468519,8.2361,121.45,121.44,17.81465241]
[1741754468712,0.05815487,121.47,121.45,0.06284655]
[1741754469416,8.29325487,121.47,121.45,0.06284655]
[1741754470009,0.05815487,121.47,121.45,0.06284655]
[1741754471618,0.05815487,121.47,121.46,8.2354]
[1741754471814,0.05815487,121.47,121.46,26.05005241]
[1741754472909,4.615,121.51,121.46,17.81465241]
[1741754473523,12.8474,121.51,121.47,8.2344]
[1741754474019,0.0590086,121.5,121.48,0.05610244]
[1741754474212,8.2918086,121.5,121.48,0.05610244]
[1741754476919,0.0590086,121.5,121.49,8.2334]
[1741754477120,0.0590086,121.5,121.48,17.87075485]
[1741754478123,8.2917086,121.5,121.48,17.87075485]
[1741754478521,8.2334,121.49,121.48,0.05610244]
[1741754480026,35.3397086,121.5,121.43,247.14]
[1741754480322,35.2807,121.5,121.43,247.14]
[1741754481126,8.2358,121.46,121.45,0.05743565]
[1741754481429,0.06081228,121.48,121.46,8.2352]
[1741754481625,0.06081228,121.48,121.45,0.05743565]
[1741754482622,8.29531228,121.48,121.45,0.05743565]
[1741754483728,8.29531228,121.48,121.45,8.29353565]
[1741754484128,0.06081228,121.48,121.46,17.81465241]
[1741754484328,0.06081228,121.48,121.46,26.04955241]
[1741754484529,0.06081228,121.48,121.46,17.81465241]
[1741754484730,0.06081228,121.48,121.46,26.04955241]
[1741754485028,0.06081228,121.48,121.46,17.81465241]
[1741754485225,0.06081228,121.48,121.46,26.04975241]
[1741754485626,0.06081228,121.48,121.46,17.81465241]
[1741754486126,8.29531228,121.48,121.46,17.81465241]
[1741754486924,0.06081228,121.48,121.46,17.81465241]
[1741754487528,8.29501228,121.48,121.46,17.81465241]
[1741754487931,8.29501228,121.48,121.45,0.05743565]
[1741754487932,0.06081228,121.48,121.45,0.05743565]
[1741754488126,8.29521228,121.48,121.45,8.29313565]
[1741754488930,0.06081228,121.48,121.45,8.29313565]
[1741754489726,0.06081228,121.48,121.46,17.81465241]
[1741754490131,8.29531228,121.48,121.46,17.81465241]
[1741754491128,0.06081228,121.48,121.45,0.05743565]
[1741754492035,17.87546469,121.48,121.4,17.81465241]
[1741754492333,8.2357,121.46,121.42,26.05255241]
[1741754492723,33.0,121.49,121.42,26.05255241]
[1741754492930,8.2363,121.45,121.42,17.81465241]
[1741754493136,8.2363,121.45,121.44,0.06308123]
[1741754493931,8.2382,121.42,121.4,17.81465241]
[1741754494437,8.2378,121.43,121.4,17.81465241]
[1741754494934,35.207,121.46,121.4,26.05375241]
[1741754495138,8.29360558,121.43,121.4,17.87662781]
[1741754495534,8.2382,121.42,121.4,17.87662781]
[1741754495730,0.05600558,121.43,121.4,17.87662781]
[1741754495926,0.05600558,121.43,121.4,0.0619754]
[1741754496431,33.05600558,121.43,121.4,0.0619754]
[1741754496933,33.05600558,121.43,121.36,17.81465241]
[1741754497134,8.2415,121.37,121.36,17.81465241]
[1741754497332,33.0,121.4,121.33,247.04]
[1741754497627,2.2832,121.39,121.3,50.81465241]
[1741754497833,2.2832,121.39,121.3,59.06055241]
[1741754498035,0.06053617,121.36,121.33,0.05381015]
[1741754498234,8.2434,121.35,121.33,0.05381015]
[1741754499437,8.2436,121.34,121.33,0.05381015]
[1741754499830,8.2431,121.35,121.33,0.05381015]
[1741754500136,2.40393617,121.36,121.33,0.05381015]
[1741754500635,2.40393617,121.36,121.33,8.29761015]
[1741754501428,2.40393617,121.36,121.33,0.05381015]
[1741754502236,2.40393617,121.36,121.33,8.29801015]
[1741754502742,2.40393617,121.36,121.33,0.05381015]
[1741754502945,2.40393617,121.36,121.33,8.29781015]
[1741754503345,0.06053617,121.36,121.34,17.81465241]
[1741754503645,0.06053617,121.36,121.35,8.2429]
[1741754504147,0.06053617,121.36,121.34,26.05795241]
[1741754505238,0.06053617,121.36,121.33,33.05381015]
[1741754505439,0.06053617,121.36,121.33,0.05381015]
[1741754507847,8.2436,121.34,121.33,0.05381015]
[1741754508449,8.2432,121.35,121.33,0.05381015]
[1741754509147,0.06053617,121.36,121.33,0.05381015]
[1741754509648,0.06053617,121.36,121.34,8.2431]
[1741754509842,0.06053617,121.36,121.33,0.05381015]
[1741754510347,0.06053617,121.36,121.35,8.2429]
[1741754512144,1.1,121.39,121.35,50.83465241]
[1741754512345,1.1,121.39,121.37,17.81465241]
[1741754512741,1.1,121.39,121.38,8.2408]
[1741754513049,4.598,121.43,121.37,17.81465241]
[1741754513248,4.598,121.43,121.39,17.81465241]
[1741754513444,0.06303847,121.41,121.4,8.239]
[1741754513742,2.2976,121.45,121.39,17.86987039]
[1741754513943,2.2976,121.45,121.43,8.2369]
[1741754514743,8.2352,121.47,121.43,8.2369]
[1741754514949,0.05384538,121.45,121.44,26.05135241]
[1741754515250,1.11,121.48,121.44,50.81465241]
[1741754515451,1.11,121.48,121.46,17.81465241]
[1741754516047,9.3442,121.48,121.46,17.81465241]
[1741754516348,1.11,121.48,121.46,17.81465241]
[1741754516548,1.16870435,121.48,121.46,17.87768508]
[1741754517050,1.16870435,121.48,121.46,0.06303267]
[1741754518051,0.05870435,121.48,121.46,0.06303267]
[1741754519045,8.29280435,121.48,121.46,0.06303267]
[1741754519251,0.05870435,121.48,121.46,0.06303267]
[1741754520248,8.2347,121.47,121.46,0.06303267]
[1741754520650,0.05870435,121.48,121.46,0.06303267]
[1741754521849,0.05870435,121.48,121.46,17.87768508]
[1741754522745,8.2347,121.47,121.46,0.06303267]
[1741754522949,0.05870435,121.48,121.46,0.06303267]
[1741754523341,8.29300435,121.48,121.46,0.06303267]
[1741754523756,8.2347,121.47,121.46,0.06303267]
[1741754524148,0.05870435,121.48,121.46,0.06303267]
[1741754525054,8.2347,121.47,121.46,0.06303267]
[1741754526443,33.03870435,121.48,121.41,247.14]
[1741754526647,2.2965,121.46,121.4,17.81465241]
[1741754526851,2.2965,121.46,121.4,26.05375241]
[1741754527051,8.2372,121.44,121.4,26.05375241]
[1741754527552,0.06174136,121.43,121.41,0.05915124]
[1741754527952,8.29924136,121.43,121.41,0.05915124]
[1741754528357,0.06174136,121.43,121.41,0.05915124]
[1741754528655,0.06174136,121.43,121.41,8.29745124]
[1741754528952,0.06174136,121.43,121.41,0.05915124]
[1741754529651,8.2381,121.42,121.41,0.05915124]
[1741754530155,0.06174136,121.43,121.36,297.85465241]
[1741754530156,8.2402,121.39,121.36,297.85465241]
[1741754530355,32.98,121.42,121.36,17.81465241]
[1741754530657,32.98,121.41,121.34,17.81465241]
[1741754531056,32.98,121.43,121.36,17.81465241]
[1741754531355,0.06195246,121.39,121.36,17.87218143]
[1741754531559,0.06195246,121.39,121.37,8.2413]
[1741754533047,0.06195246,121.39,121.38,26.05545241]
[1741754534558,0.06195246,121.39,121.38,17.81465241]
[1741754536259,0.06195246,121.39,121.38,26.05545241]
[1741754536460,0.06195246,121.39,121.38,17.81465241]
[1741754537351,0.06195246,121.39,121.36,50.85218143]
[1741754537966,8.30275246,121.39,121.36,50.85218143]
[1741754538161,0.06195246,121.39,121.36,50.85218143]
[1741754538362,0.06195246,121.39,121.36,59.09428143]
[1741754539364,8.30225246,121.39,121.36,26.11428143]
[1741754539565,8.30225246,121.39,121.36,26.11438143]
[1741754539768,0.06195246,121.39,121.36,0.05752902]
[1741754540067,0.06195246,121.39,121.36,17.87218143]
[1741754540763,0.06195246,121.39,121.36,0.05752902]
[1741754540965,8.2415,121.37,121.36,0.05752902]
[1741754542166,8.244,121.34,121.32,17.81465241]
[1741754543265,0.056644,121.34,121.32,17.8749474]
[1741754543666,0.056644,121.34,121.32,50.8549474]
[1741754544362,0.056644,121.34,121.33,8.2442]
[1741754544568,213.07626582,121.42,121.32,68.66959981]
[1741754544775,213.07626582,121.42,121.36,17.81465241]
[1741754545065,8.2406,121.39,121.36,26.05645241]
[1741754545667,8.2406,121.39,121.36,26.11120209]
[1741754545668,8.30254572,121.39,121.36,26.11120209]
[1741754547566,0.06194572,121.39,121.38,8.2408]
[1741754548770,0.06194572,121.39,121.37,8.2412]
[1741754549573,0.06194572,121.39,121.36,26.11130209]
[1741754550876,8.39224572,121.39,121.36,26.11130209]
[1741754551375,0.15194572,121.39,121.36,17.86940209]
[1741754552078,8.39234572,121.39,121.36,26.11120209]
[1741754552275,8.39234572,121.39,121.36,17.86940209]
[1741754552475,8.2412,121.38,121.36,17.86940209]
[1741754552674,8.2412,121.38,121.36,0.05474968]
[1741754553576,0.15194572,121.39,121.36,0.05474968]
[1741754554177,8.39244572,121.39,121.36,8.29694968]
[1741754554576,0.15194572,121.39,121.37,17.81465241]
[1741754554775,0.15194572,121.39,121.38,8.2408]
[1741754556580,2.2765,121.44,121.4,8.2394]
[1741754556772,5.5228,121.45,121.41,50.79465241]
[1741754557170,13.7592,121.45,121.41,59.03305241]
[1741754557677,0.06300955,121.44,121.42,8.29437072]
[1741754558380,0.06300955,121.44,121.42,0.05637072]
[1741754559682,0.06300955,121.44,121.42,8.29387072]
[1741754560183,0.06300955,121.44,121.42,0.05637072]
[1741754560380,0.06300955,121.44,121.43,26.05215241]
[1741754560682,0.06300955,121.44,121.43,17.81465241]
[1741754562285,1.12,121.45,121.44,8.2368]
[1741754562484,1.12,121.45,121.44,41.2168]
[1741754562686,11.12545927,121.47,121.46,8.2354]
[1741754562882,2.39,121.51,121.46,26.05005241]
[1741754563083,2.39,121.51,121.46,17.81465241]
[1741754563387,0.05758933,121.5,121.47,0.05638629]
[1741754563785,8.29068933,121.5,121.47,8.29098629]
[1741754564990,8.29068933,121.5,121.47,0.05638629]
[1741754565190,0.05758933,121.5,121.47,0.05638629]
[1741754565391,8.2334,121.49,121.47,0.05638629]
[1741754565887,8.29048933,121.5,121.47,0.05638629]
[1741754566085,0.05758933,121.5,121.47,0.05638629]
[1741754568181,8.2339,121.49,121.47,0.05638629]
[1741754568381,0.05758933,121.5,121.47,0.05638629]
[1741754568780,8.2338,121.49,121.47,0.05638629]
[1741754569086,0.05758933,121.5,121.47,0.05638629]
[1741754569486,0.05758933,121.5,121.48,17.81465241]
[1741754569686,0.05758933,121.5,121.48,50.77465241]
[1741754570689,0.05758933,121.5,121.48,59.00845241]
[1741754571292,0.05758933,121.5,121.48,50.77465241]
[1741754572093,0.05758933,121.5,121.49,8.2334]
[1741754572395,0.05758933,121.5,121.48,50.77465241]
[1741754572783,8.29048933,121.5,121.48,50.77465241]
[1741754573688,0.05758933,121.5,121.48,50.77465241]
[1741754573887,0.05758933,121.5,121.48,59.00855241]
[1741754574592,0.05758933,121.5,121.48,50.77465241]
[1741754575794,0.05758933,121.5,121.48,59.00835241]
[1741754579193,8.29028933,121.5,121.48,50.77465241]
[1741754579895,8.2334,121.49,121.47,0.05638629]